fUSD/lending_fUSD_20240215
["ID","MTS","AMOUNT","RATE_DAILY","PERIOD"]
[314078301,1707960668843,-500.0,0.00039988,2]
[314078302,1707960668854,-500.0,0.00039988,2]
[314078303,1707960668864,-500.0,0.00039988,2]
[314078304,1707960668875,-500.0,0.00039988,2]
[314078305,1707960668884,-500.0,0.00039988,2]
[314078306,1707960668894,-500.0,0.00039988,2]
[314078307,1707960668904,-500.0,0.00039988,2]
[314078308,1707960668914,-500.0,0.00039988,2]
[314078309,1707960668924,-500.0,0.00039988,2]
[314078310,1707960668933,-500.0,0.00039988,2]
[314078311,1707960668943,-500.0,0.00039988,2]
[314078312,1707960668954,-500.0,0.00039988,2]
[314078313,1707960668964,-500.0,0.00039988,2]
[314078314,1707960668974,-500.0,0.00039988,2]
[314078315,1707960668983,-500.0,0.00039988,2]
[314078316,1707960668992,-500.0,0.00039988,2]
[314078317,1707960669002,-500.0,0.00039988,2]
[314078318,1707960669011,-500.0,0.00039988,2]
[314078319,1707960669021,-500.0,0.00039988,2]
[314078320,1707960669031,-500.0,0.00039988,2]
[314078321,1707960669040,-500.0,0.00039988,2]
[314078322,1707960669049,-500.0,0.00039988,2]
[314078323,1707960669058,-500.0,0.00039988,2]
[314078324,1707960669067,-300.0,0.00039988,2]
[314078325,1707960669077,-500.0,0.00039988,2]
[314078326,1707960669086,-500.0,0.00039988,2]
[314078327,1707960669095,-500.0,0.00039988,2]
[314078328,1707960669104,-500.0,0.00039988,2]
[314078329,1707960669113,-500.0,0.00039988,2]
[314078330,1707960669123,-500.0,0.00039988,2]
[314078331,1707960669133,-500.0,0.00039988,2]
[314078332,1707960669142,-500.0,0.00039988,2]
[314078333,1707960669152,-500.0,0.00039988,2]
[314078334,1707960669161,-500.0,0.00039988,2]
[314078335,1707960669170,-500.0,0.00039988,2]
[314078336,1707960669179,-500.0,0.00039988,2]
[314078337,1707960669188,-500.0,0.00039988,2]
[314078338,1707960669198,-500.0,0.00039988,2]
[314078339,1707960669207,-500.0,0.00039988,2]
[314078340,1707960669216,-500.0,0.00039988,2]
[314078341,1707960669225,-500.0,0.00039988,2]
[314078342,1707960669235,-500.0,0.00039988,2]
[314078343,1707960669244,-500.0,0.00039988,2]
[314078344,1707960669253,-500.0,0.00039988,2]
[314078345,1707960669263,-500.0,0.00039988,2]
[314078346,1707960669273,-500.0,0.00039988,2]
[314078347,1707960669282,-500.0,0.00039988,2]
[314078348,1707960669292,-500.0,0.00039988,2]
[314078349,1707960669301,-500.0,0.00039988,2]
[314078350,1707960669310,-500.0,0.00039988,2]
[314078351,1707960669321,-500.0,0.00039988,2]
[314078352,1707960669331,-500.0,0.00039988,2]
[314078353,1707960669340,-500.0,0.00039988,2]
[314078354,1707960669350,-500.0,0.00039988,2]
[314078355,1707960669360,-500.0,0.00039988,2]
[314078356,1707960669370,-500.0,0.00039988,2]
[314078357,1707960669385,-500.0,0.00039988,2]
[314078358,1707960669396,-500.0,0.00039988,2]
[314078359,1707960669407,-500.0,0.00039988,2]
[314078360,1707960669418,-500.0,0.00039988,2]
[314078361,1707960669428,-500.0,0.00039988,2]
[314078362,1707960669438,-500.0,0.00039988,2]
[314078363,1707960669448,-500.0,0.00039988,2]
[314078364,1707960669457,-500.0,0.00039988,2]
[314078365,1707960669467,-500.0,0.00039988,2]
[314078366,1707960669477,-500.0,0.00039988,2]
[314078367,1707960669487,-500.0,0.00039988,2]
[314078368,1707960669496,-500.0,0.00039988,2]
[314078369,1707960669505,-500.0,0.00039988,2]
[314078370,1707960669514,-500.0,0.00039988,2]
[314078371,1707960669524,-500.0,0.00039988,2]
[314078372,1707960669534,-500.0,0.00039988,2]
[314078373,1707960669543,-500.0,0.00039988,2]
[314078374,1707960669552,-500.0,0.00039988,2]
[314078375,1707960669561,-500.0,0.00039988,2]
[314078376,1707960669570,-500.0,0.00039988,2]
[314078377,1707960669579,-500.0,0.00039988,2]
[314078378,1707960669588,-500.0,0.00039988,2]
[314078379,1707960669597,-500.0,0.00039988,2]
[314078380,1707960669606,-500.0,0.00039988,2]
[314078381,1707960669615,-500.0,0.00039988,2]
[314078382,1707960669626,-500.0,0.00039988,2]
[314078383,1707960669634,-500.0,0.00039988,2]
[314078384,1707960669644,-500.0,0.00039988,2]
[314078385,1707960669655,-500.0,0.00039988,2]
[314078386,1707960669664,-500.0,0.00039988,2]
[314078387,1707960669673,-500.0,0.00039989,2]
[314078388,1707960669682,-500.0,0.00039989,2]
[314078389,1707960669694,-500.0,0.00039989,2]
[314078390,1707960669704,-500.0,0.00039989,2]
[314078391,1707960669714,-500.0,0.00039989,2]
[314078392,1707960669723,-500.0,0.00039989,2]
[314078393,1707960669733,-500.0,0.00039989,2]
[314078394,1707960669743,-500.0,0.00039989,2]
[314078395,1707960669753,-500.0,0.00039989,2]
[314078396,1707960669762,-500.0,0.00039989,2]
[314078397,1707960669772,-500.0,0.00039989,2]
[314078398,1707960669782,-500.0,0.00039989,2]
[314078399,1707960669792,-3481.05,0.0004,14]
[314078400,1707960669801,-2000.0,0.0004,6]
[314078401,1707960669811,-360.0,0.0004,12]
[314078402,1707960669820,-2110.0,0.0004,15]
[314078403,1707960669830,-10000.0,0.0004,14]
[314078404,1707960669840,-1500.0,0.0004,120]
[314078405,1707960669849,-500.0,0.0004,7]
[314078406,1707960669859,-569.42,0.0004,7]
[314078407,1707960669868,-528.46360919,0.0004,7]
[314078408,1707960669880,-995.94,0.0004,7]
[314078409,1707960669889,-2972.85728,0.0004,2]
[314078410,1707960669899,-500.0,0.0004,7]
[314078411,1707960669908,-500.0,0.0004,7]
[314078412,1707960669917,-500.0,0.0004,7]
[314078413,1707960669927,-500.0,0.0004,7]
[314078414,1707960669936,-1432.32,0.0004,7]
[314078415,1707960669945,-1040.28,0.0004,7]
[314078416,1707960669955,-500.0,0.0004,7]
[314078417,1707960669964,-500.0,0.0004,7]
[314078418,1707960669973,-500.0,0.0004,7]
[314078419,1707960669982,-807.68,0.0004,7]
[314078420,1707960669992,-893.45,0.0004,7]
[314078421,1707960670001,-500.0,0.0004,7]
[314078422,1707960670010,-500.0,0.0004,7]
[314078423,1707960670019,-500.0,0.0004,7]
[314078424,1707960670028,-1136.18,0.0004,7]
[314078425,1707960670114,-500.0,0.0004,7]
[314078426,1707960670125,-500.0,0.0004,7]
[314078427,1707960670136,-1497.64,0.0004,7]
[314078428,1707960670145,-500.0,0.0004,7]
[314078429,1707960670155,-630.18,0.0004,7]
[314078430,1707960670165,-967.67,0.0004,7]
[314078431,1707960670175,-2513.84,0.0004,7]
[314078432,1707960670185,-1000.0,0.0004,2]
[314078433,1707960670194,-500.0,0.0004,7]
[314078434,1707960670204,-157.87891189,0.0004003,30]
[314078435,1707960670214,-154.66461652,0.00040063,30]
[314078436,1707960670223,-872.0,0.0004009,20]
[314078437,1707960670232,-1228.60866399,0.0004009,20]
[314078438,1707960670242,-1040.0,0.00040091,20]
[314078439,1707960670251,-153.22793095,0.00040132,30]
[314078440,1707960670261,-159.49314868,0.00040146,30]
[314078441,1707960670270,-500.0,0.0004018,2]
[314078442,1707960670279,-1264.91963898,0.0004018,5]
[314078443,1707960670288,-1190.460384,0.00040268,5]
[314078444,1707960670298,-247.97472385,0.00040273,7]
[314078445,1707960670307,-569.42,0.00040273,7]
[314078446,1707960670316,-995.94,0.00040273,7]
[314078447,1707960670326,-235.71189238,0.00040273,7]
[314078448,1707960670335,-157.87891189,0.00040273,30]
[314078449,1707960670345,-500.0,0.00040273,7]
[314078450,1707960670354,-500.0,0.00040273,7]
[314078451,1707960670363,-500.0,0.00040273,7]
[314078452,1707960670373,-1432.32,0.00040273,7]
[314078453,1707960670383,-1040.28,0.00040273,7]
[314078454,1707960670392,-500.0,0.00040273,7]
[314078455,1707960670401,-500.0,0.00040273,7]
[314078456,1707960670411,-500.0,0.00040273,7]
[314078457,1707960670420,-807.68,0.00040273,7]
[314078458,1707960670429,-893.45,0.00040273,7]
[314078459,1707960670438,-500.0,0.00040273,7]
[314078460,1707960670448,-450.58632458,0.00040273,7]
[314078461,1707960670456,-500.0,0.00040273,7]
[314078462,1707960670466,-1136.18,0.00040273,7]
[314078463,1707960670475,-500.0,0.00040273,7]
[314078464,1707960670484,-500.0,0.00040273,7]
[314078465,1707960670493,-1497.64,0.00040273,7]
[314078466,1707960670502,-624.48671567,0.00040273,7]
[314078467,1707960670511,-630.18,0.00040273,7]
[314078468,1707960670521,-967.67,0.00040273,7]
[314078469,1707960670530,-2513.84,0.00040273,7]
[314078470,1707960670540,-500.0,0.00040273,7]
[314078471,1707960670549,-200.0,0.000403,14]
[314078472,1707960670558,-970.0,0.000403,42]
[314078473,1707960670567,-150.0,0.00040374,2]
[314078474,1707960670576,-1500.0,0.00040385,2]
[314078475,1707960670586,-941.6865264,0.000404,120]
[314078476,1707960670595,-150.0,0.00040402,2]
[314078477,1707960670604,-150.0,0.00040421,30]
[314078478,1707960670614,-228.0,0.00040444,7]
[314078479,1707960670625,-155.0589635,0.00040464,30]
[314078480,1707960670634,-170.92477264,0.00040466,30]
[314078481,1707960670644,-159.49314868,0.00040468,30]
[314078482,1707960670655,-155.0589635,0.00040472,30]
[314078483,1707960670664,-153.0,0.00040488,7]
[314078484,1707960670673,-872.0,0.00040491,20]
[314078485,1707960670682,-2110.0,0.000405,15]
[314078486,1707960670694,-1111.0,0.000405,4]
[314078487,1707960670703,-158.693694,0.000405,7]
[314078488,1707960670713,-152.86980421,0.000405,8]
[314078489,1707960670722,-200.0,0.000405,30]
[314078490,1707960670731,-2151.03,0.000405,6]
[314078491,1707960670740,-1040.0,0.000405,20]
[314078492,1707960670749,-150.0,0.00040516,2]
[314078493,1707960670759,-155.23113527,0.00040521,30]
[314078494,1707960670769,-151.0,0.00040522,7]
[314078495,1707960670778,-151.0,0.00040522,7]
[314078496,1707960670788,-150.0,0.00040537,2]
[314078497,1707960670797,-569.42,0.00040547,7]
[314078498,1707960670806,-995.94,0.00040547,7]
[314078499,1707960670816,-500.0,0.00040547,7]
[314078500,1707960670825,-151.0,0.00040547,7]
[314078501,1707960670835,-500.0,0.00040547,7]
[314078502,1707960670844,-500.0,0.00040547,7]
[314078503,1707960670854,-1432.32,0.00040547,7]
[314078504,1707960670863,-1040.28,0.00040547,7]
[314078505,1707960670875,-500.0,0.00040547,7]
[314078506,1707960670884,-522.41097978,0.00040547,7]
[314078507,1707960670893,-500.0,0.00040547,7]
[314078508,1707960670901,-807.68,0.00040547,7]
[314078509,1707960670911,-893.45,0.00040547,7]
[314078510,1707960670920,-500.0,0.00040547,7]
[314078511,1707960670929,-382.87201859,0.00040547,7]
[314078512,1707960670939,-1136.18,0.00040547,7]
[314078513,1707960670948,-547.34308599,0.00040547,7]
[314078514,1707960670958,-500.0,0.00040547,7]
[314078515,1707960670967,-1497.64,0.00040547,7]
[314078516,1707960670977,-630.18,0.00040547,7]
[314078517,1707960670986,-967.67,0.00040547,7]
[314078518,1707960670995,-2513.84,0.00040547,7]
[314078519,1707960671005,-500.0,0.00040547,7]
[314078520,1707960671014,-235.86294,0.00040588,2]
[314078521,1707960671024,-207.0,0.0004059,2]
[314078522,1707960671033,-150.0,0.00040599,2]
[314078523,1707960671042,-300.0,0.00040603,2]
[314078524,1707960671051,-157.87891189,0.00040615,30]
[314078525,1707960671060,-159.49314868,0.00040626,30]
[314078526,1707960671070,-155.0589635,0.00040642,30]
[314078527,1707960671079,-155.0589635,0.00040655,30]
[314078528,1707960671089,-151.0,0.00040657,7]
[314078529,1707960671098,-162.166701,0.00040657,7]
[314078530,1707960671107,-151.0,0.00040657,7]
[314078531,1707960671116,-200.0,0.0004067,20]
[314078532,1707960671125,-500.0,0.0004067,20]
[314078533,1707960671135,-157.87891189,0.00040698,30]
[314078534,1707960671144,-300.0,0.00040717,2]
[314078535,1707960671153,-266.22,0.00040733,2]
[314078536,1707960671162,-155.23113527,0.00040774,30]
[314078537,1707960671171,-1605.6405,0.00040795,5]
[314078538,1707960671180,-2000.0,0.00040795,5]
[314078539,1707960671190,-1070.78,0.000408,30]
[314078540,1707960671199,-569.42,0.00040821,7]
[314078541,1707960671208,-995.94,0.00040821,7]
[314078542,1707960671218,-500.0,0.00040821,7]
[314078543,1707960671227,-500.0,0.00040821,7]
[314078544,1707960671237,-500.0,0.00040821,7]
[314078545,1707960671246,-1432.32,0.00040821,7]
[314078546,1707960671256,-1040.28,0.00040821,7]
[314078547,1707960671266,-500.0,0.00040821,7]
[314078548,1707960671274,-500.0,0.00040821,7]
[314078549,1707960671284,-807.68,0.00040821,7]
[314078550,1707960671293,-321.29518011,0.00040821,7]
[314078551,1707960671377,-1136.18,0.00040821,7]
[314078552,1707960671386,-454.13917949,0.00040821,7]
[314078553,1707960671396,-1497.64,0.00040821,7]
[314078554,1707960671405,-893.45,0.00040821,7]
[314078555,1707960671415,-630.18,0.00040821,7]
[314078556,1707960671424,-967.67,0.00040821,7]
[314078557,1707960671435,-2513.84,0.00040821,7]
[314078558,1707960671444,-500.0,0.00040821,7]
[314078559,1707960671454,-154.41789369,0.0004087,30]
[314078560,1707960671463,-154.68938908,0.00040875,30]
[314078561,1707960671472,-155.23113527,0.00040877,30]
[314078562,1707960671481,-76017.36089389,0.00040886,15]
[314078563,1707960671490,-872.0,0.00040892,20]
[314078564,1707960671499,-157.02522442,0.00040892,30]
[314078565,1707960671508,-195.49651106,0.000409,15]
[314078566,1707960671518,-490.316479,0.000409,2]
[314078567,1707960671527,-972.91505205,0.000409,10]
[314078568,1707960671537,-3615.24571512,0.000409,15]
[314078569,1707960671546,-155.23113527,0.00040905,30]
[314078570,1707960671555,-195.49651106,0.00040906,15]
[314078571,1707960671565,-1040.0,0.00040909,20]
[314078572,1707960671574,-150.0,0.00040912,2]
[314078573,1707960671583,-76017.36089389,0.00040917,15]
[314078574,1707960671593,-2002.57110372,0.00040921,15]
[314078575,1707960671602,-46525.26452626,0.00040927,15]
[314078576,1707960671861,-29492.09636763,0.00040927,15]
[314078577,1707960671873,-2862.58575776,0.00040927,2]
[314078578,1707960671905,-2002.57110372,0.00040934,15]
[314078579,1707960671925,-2002.57110372,0.00040939,15]
[314078580,1707960671950,-155.23113527,0.00040945,30]
[314078581,1707960671970,-532.06936974,0.00040947,15]
[314078582,1707960671987,-532.06936974,0.00040959,15]
[314078583,1707960672008,-2545.0053451,0.00040972,2]
[314078584,1707960672024,-2423.4680852,0.00040972,2]
[314078585,1707960672049,-2301.9308252,0.00040972,2]
[314078586,1707960672067,-2180.3935652,0.00040972,2]
[314078587,1707960672089,-2058.8563052,0.00040972,2]
[314078588,1707960672110,-1284.8439134,0.00040972,2]
[314078589,1707960672129,-1232.0824089,0.00040972,2]
[314078590,1707960672146,-1179.3209044,0.00040972,2]
[314078591,1707960672163,-1126.5593999,0.00040972,2]
[314078592,1707960672176,-1073.7978954,0.00040972,2]
[314078593,1707960672191,-1390.2195332,0.00040972,2]
[314078594,1707960672206,-1348.1753194,0.00040972,2]
[314078595,1707960672221,-1306.1311057,0.00040972,2]
[314078596,1707960672236,-1264.0868919,0.00040972,2]
[314078597,1707960672250,-1222.0426781,0.00040972,2]
[314078598,1707960672267,-29033.674306,0.00040972,2]
[314078599,1707960672284,-28155.6129783,0.00040972,2]
[314078600,1707960672299,-27277.5516506,0.00040972,2]
[314078601,1707960672308,-23553.20812981,0.00040972,2]
[314078602,1707960672321,-549.00530658,0.00040972,2]
[314078603,1707960672360,-2297.27688651,0.00040972,2]
[314078604,1707960672370,-105.81709799,0.00040972,2]
[314078605,1707960672384,-25415.61189721,0.00040972,2]
[314078606,1707960672393,-195.49651106,0.00040974,15]
[314078607,1707960672403,-2645.0,0.00040978,40]
[314078608,1707960672412,-2892.06173857,0.0004099,2]
[314078609,1707960672422,-150.0,0.00040991,2]
[314078610,1707960672431,-2666.5426051,0.00040992,2]
[314078611,1707960672441,-1337.6054179,0.00040992,2]
[314078612,1707960672450,-1432.263747,0.00040992,2]
[314078613,1707960672459,-29911.7356338,0.00040992,2]
[314078614,1707960672469,-3315.42078673,0.00040997,2]
[314078615,1707960672479,-668.0353382,0.00040997,2]
[314078616,1707960672489,-150.0,0.00040999,3]
[314078617,1707960672499,-150.0,0.00040999,3]
[314078618,1707960672509,-282.72279652,0.00040999,3]
[314078619,1707960672518,-150.0,0.00040999,3]
[314078620,1707960672527,-150.0,0.00040999,3]
[314078621,1707960672537,-190.84085951,0.00040999,3]
[314078622,1707960672546,-532.06936974,0.00040999,15]
[314078623,1707960672555,-4023.76961286,0.00041,4]
[314078624,1707960672567,-42790.62578461,0.00041,4]
[314078625,1707960672579,-44634.71886191,0.00041,4]
[314078626,1707960672591,-996.15200882,0.00041,4]
[314078627,1707960672602,-748.94135347,0.00041,4]
[314078628,1707960672614,-842.03593569,0.00041,4]
[314078629,1707960672919,-500.0,0.00039452,7]
[314078630,1707960672929,-2670.93065347,0.00041,4]
[314078631,1707960672947,-746.608,0.00037588,2]
[314078632,1707960672956,-1370.56773181,0.00041,4]
[314078633,1707960672968,-2487.5081618,0.00041,4]
[314078634,1707960672981,-252.000007,0.00041,4]
[314078635,1707960672993,-5217.80030022,0.00041,4]
[314078636,1707960673011,-500.0,0.00036712,7]
[314078637,1707960673022,-145.72641187,0.00041,4]
[314078638,1707960673441,-500.0,0.0003479,2]
[314078639,1707960673465,-9508.24752007,0.0003479,2]
[314078640,1707960673475,-150.95094303,0.00035,2]
[314078641,1707960673484,-219.29018242,0.00035616,7]
[314078642,1707960673494,-276.35158437,0.00036131,7]
[314078643,1707960673503,-500.0,0.00036986,7]
[314078644,1707960673513,-418.41459698,0.0003726,7]
[314078645,1707960673523,-397.39172264,0.00039726,7]
[314078646,1707960673532,-15478.31404963,0.00041,4]
[314078647,1707960673544,-519873.02733219,0.00041,4]
[314078648,1707960673557,-10390.9392526,0.00041,4]
[314078649,1707960673576,-13710.45395512,0.00041,4]
[314078650,1707960673588,-1080.07773778,0.00041,4]
[314078651,1707960673600,-284.47928952,0.00041,4]
[314078652,1707960673624,-1452.68179435,0.00041,4]
[314078653,1707960673677,-37336.76154666,0.00041,4]
[314078654,1707960673749,-1.561e-05,0.00041,4]
[314078655,1707960673895,-500.0,0.00035616,7]
[314078656,1707960673905,-430.48863374,0.00035616,7]
[314078657,1707960673914,-594.64039763,0.0003589,7]
[314078658,1707960673923,-500.0,0.00039988,2]
[314078659,1707960673932,-500.0,0.00039988,2]
[314078660,1707960673941,-500.0,0.00039988,2]
[314078661,1707960673951,-500.0,0.00039988,2]
[314078662,1707960673960,-500.0,0.00039988,2]
[314078663,1707960673970,-500.0,0.00039988,2]
[314078664,1707960673979,-500.0,0.00039988,2]
[314078665,1707960673987,-500.0,0.00039988,2]
[314078666,1707960673997,-981.41712934,0.00041,4]
[314078667,1707960674010,-5694.50363294,0.00041,4]
[314078668,1707960674029,-843.15847131,0.0003479,2]
[314078669,1707960674041,-9165.08904876,0.0003479,2]
[314078670,1707960674050,-503917.59500925,0.00041,4]
[314078671,1707960674062,-11660.43532502,0.00041,4]
[314078672,1707960674090,-31173.38268785,0.00041,4]
[314078673,1707960674106,-766.33196929,0.00041,4]
[314078674,1707960746024,176.92,0.00017705,2]
[314078675,1707961091698,-203.74536491,0.00022798,2]
[314078681,1707961758115,-242.0,0.00022899,2]
[314078682,1707961758134,-1199.63478208,0.000229,2]
[314078687,1707961832287,-67.87971792,0.000229,2]
[314078688,1707961832297,-175.75090138,0.00025007,2]
[314078689,1707961832307,-169.14230365,0.00025107,2]
[314078690,1707961832346,-1332.99769635,0.00025107,2]
[314078691,1707961832355,-1621.67992281,0.00027717,2]
[314078692,1707961832367,-399.38815885,0.00027717,2]
[314078693,1707961832379,-1191.53191834,0.00027717,2]
[314078694,1707961832388,-400.0,0.00032643,3]
[314078695,1707961832399,-18235.00852848,0.00032644,7]
[314078696,1707961832409,-6271.5027789,0.00032644,7]
[314078697,1707961832418,-12294.02517035,0.00032644,7]
[314078698,1707961832427,-499.99,0.00033196,2]
[314078699,1707961832438,-157.35,0.000335,2]
[314078700,1707961832447,-157.35,0.000335,2]
[314078701,1707961832457,-157.35,0.000335,2]
[314078702,1707961832466,-157.35,0.000335,2]
[314078703,1707961832475,-552.59,0.00033743,2]
[314078704,1707961832485,-1000.0,0.00034733,2]
[314078705,1707961832494,-10000.0,0.00034851,35]
[314078706,1707961832503,-288.82647331,0.00034871,3]
[314078707,1707961832512,-163.1550636,0.00034871,3]
[314078708,1707961832521,-221.30366054,0.00034871,3]
[314078709,1707961832531,-219.7244198,0.00034871,3]
[314078710,1707961832542,-560.0,0.00035086,3]
[314078711,1707961832552,-191.37,0.00035114,2]
[314078712,1707961832561,-250.0,0.00035114,111]
[314078713,1707961832571,-169.97,0.00035114,2]
[314078714,1707961832581,-500.0,0.00035114,2]
[314078715,1707961832590,-1298.7,0.00035114,2]
[314078716,1707961832601,-151.52,0.00035295,2]
[314078717,1707961832610,-202.72,0.00035366,2]
[314078718,1707961832619,-23900.0,0.00035402,2]
[314078719,1707961832629,-2450.3078,0.00035416,2]
[314078720,1707961832639,-7149.4333,0.00035416,2]
[314078721,1707961832650,-457.34111365,0.00035416,2]
[314078722,1707961832659,-940.0,0.00035472,2]
[314078723,1707961832668,-2000.0,0.00035472,2]
[314078724,1707961832677,-250.0,0.00035472,2]
[314078725,1707961832686,-1415.6,0.00035472,2]
[314078726,1707961832697,-200.0,0.00035497,2]
[314078727,1707961832707,-200.0,0.00035508,2]
[314078728,1707961832717,-876.7555,0.00035516,2]
[314078729,1707961832728,-207.1187,0.00035516,2]
[314078730,1707961832737,-33443.3227,0.00035516,2]
[314078731,1707961832747,-5060.5349156,0.00035516,2]
[314078732,1707961832757,-250.0,0.0003552,2]
[314078733,1707961832767,-150.0,0.00035543,2]
[314078734,1707961832776,-169.22,0.00035598,2]
[314078735,1707961832785,-394.92,0.00035599,2]
[314078736,1707961832794,-1000.0,0.000356,2]
[314078737,1707961832803,-157.35,0.000356,3]
[314078738,1707961832813,-157.35,0.000356,3]
[314078739,1707961832822,-157.35,0.000356,3]
[314078740,1707961832833,-157.35,0.000356,3]
[314078741,1707961832843,-1073.61,0.00035609,2]
[314078742,1707961832854,-150.0,0.00035613,2]
[314078743,1707961832864,-1840.71,0.00035616,5]
[314078744,1707961832874,-1802.19,0.00035616,5]
[314078745,1707961832882,-1817.74,0.00035616,5]
[314078746,1707961832891,-1813.08,0.00035616,5]
[314078747,1707961832901,-1810.81,0.00035616,5]
[314078748,1707961832909,-1785.51,0.00035616,5]
[314078749,1707961832918,-1828.37,0.00035616,5]
[314078750,1707961832927,-1775.18,0.00035616,5]
[314078751,1707961832938,-518.86824891,0.00035616,7]
[314078752,1707961832949,-517.36135387,0.00035616,7]
[314078753,1707961832959,-521.6468856,0.00035616,7]
[314078754,1707961832968,-525.27055645,0.00035616,7]
[314078755,1707961832978,-512.15307583,0.00035616,7]
[314078756,1707961832987,-532.05879818,0.00035616,7]
[314078757,1707961832997,-506.40477212,0.00035616,7]
[314078758,1707961833006,-518.03782241,0.00035616,7]
[314078759,1707961833016,-562.10506341,0.00035616,7]
[314078760,1707961833026,-527.12976222,0.00035616,7]
[314078761,1707961833035,-500.0,0.00035616,7]
[314078762,1707961833044,-503.66117414,0.00035616,7]
[314078763,1707961833053,-530.31604629,0.00035616,7]
[314078764,1707961833062,-500.0,0.00035616,7]
[314078765,1707961833071,-528.85629315,0.00035616,7]
[314078766,1707961833081,-532.6479987,0.00035616,7]
[314078767,1707961833090,-522.5561625,0.00035616,7]
[314078768,1707961833099,-512.5931761,0.00035616,7]
[314078769,1707961833109,-513.35121628,0.00035616,7]
[314078770,1707961833118,-525.0763554,0.00035616,7]
[314078771,1707961833127,-521.98777526,0.00035616,7]
[314078772,1707961833140,-215.43191104,0.00035616,7]
[314078773,1707961833150,-608.18999524,0.00035616,7]
[314078774,1707961833160,-516.22053461,0.00035616,7]
[314078775,1707961833169,-534.78893657,0.00035616,7]
[314078776,1707961833180,-522.32141446,0.00035616,7]
[314078777,1707961833191,-545.12718221,0.00035616,7]
[314078778,1707961833201,-516.95362144,0.00035616,7]
[314078779,1707961833210,-533.74230101,0.00035616,7]
[314078780,1707961833219,-562.25798734,0.00035616,7]
[314078781,1707961833228,-530.5970983,0.00035616,7]
[314078782,1707961833237,-500.0,0.00035616,7]
[314078783,1707961833247,-526.01635102,0.00035616,7]
[314078784,1707961833257,-529.98403243,0.00035616,7]
[314078785,1707961833266,-500.0,0.00035616,7]
[314078786,1707961833275,-167.75936157,0.00035616,7]
[314078787,1707961833285,-158.01,0.00035738,2]
[314078788,1707961833295,-540.66183393,0.0003589,7]
[314078789,1707961833305,-282.65146958,0.0003589,7]
[314078790,1707961833314,-181.2283511,0.0003589,7]
[314078791,1707961833326,-163.93475394,0.0003589,7]
[314078792,1707961833336,-592.41,0.00035903,2]
[314078793,1707961833346,-552.59,0.00036007,2]
[314078794,1707961833356,-412.0,0.0003623,2]
[314078795,1707961833365,-5060.53491555,0.00036336,2]
[314078796,1707961833375,-1502.14,0.0003634,2]
[314078797,1707961833386,-158.01,0.00036359,2]
[314078798,1707961833401,-151.27,0.00036967,2]
[314078799,1707961833563,-158.01,0.0003698,2]
[314078800,1707961833573,-783.85,0.00036986,2]
[314078801,1707961833582,-1250.0,0.00037,2]
[314078802,1707961833591,-202.72,0.0003701,2]
[314078803,1707961833601,-457.34111364,0.00037057,2]
[314078804,1707961833610,-5060.53491555,0.00037157,2]
[314078805,1707961833620,-990.5347,0.0003716,2]
[314078806,1707961833630,-541.6496,0.0003716,2]
[314078807,1707961833640,-151.0,0.00037552,2]
[314078808,1707961833651,-157.35,0.000376,3]
[314078809,1707961833662,-157.35,0.000376,3]